[Event "Titled Tuesday Blitz April 26 Late 2022"]
[White "Ouellet, Maili-Jade"]
[Black "Abdrlauf, Elham"]
[WhiteFideId "2620472"]
[BlackFideId "1533533"]
[WhiteElo "1899"]
[BlackElo "2334"]
[Result "1-0"]
[Round "01"]
[TimeControl "180+1"]
[Date "2022.04.26"]
[WhiteClock "0:00:16"]
[BlackClock "0:00:05"]

1. d4 {[%clk 0:03:00]}  Nf6 {[%clk 0:02:59]} 2. c4 {[%clk 0:03:00]}  e6 {[%clk 0:02:59]} 3. Nc3 {[%clk 0:03:01]}  d5 {[%clk 0:03:00]} 4. cxd5 {[%clk 0:03:00]}  exd5 {[%clk 0:03:01]} 5. Bg5 {[%clk 0:03:00]}  c6 {[%clk 0:03:02]} 6. e3 {[%clk 0:03:01]}  Bd6 {[%clk 0:03:02]} 7. Bd3 {[%clk 0:03:01]}  O-O {[%clk 0:03:03]} 8. Qc2 {[%clk 0:03:01]}  h6 {[%clk 0:03:03]} 9. Bh4 {[%clk 0:03:01]}  Re8 {[%clk 0:03:04]} 10. Nge2 {[%clk 0:03:01]}  a5 {[%clk 0:03:04]} 11. h3 {[%clk 0:03:01]}  Na6 {[%clk 0:03:05]} 12. a3 {[%clk 0:03:01]}  Nc7 {[%clk 0:03:05]} 13. O-O {[%clk 0:03:02]}  Ne6 {[%clk 0:03:06]} 14. f4 {[%clk 0:03:00]}  Be7 {[%clk 0:03:01]} 15. Rf3 {[%clk 0:02:51]}  c5 {[%clk 0:02:51]} 16. Bb5 {[%clk 0:02:42]}  Bd7 {[%clk 0:02:49]} 17. dxc5 {[%clk 0:02:19]}  Nxc5 {[%clk 0:02:39]} 18. Nd4 {[%clk 0:02:17]}  Rc8 {[%clk 0:02:14]} 19. Bxd7 {[%clk 0:02:11]}  Qxd7 {[%clk 0:02:09]} 20. Nf5 {[%clk 0:02:07]}  Bd8 {[%clk 0:02:05]} 21. Rd1 {[%clk 0:02:05]}  Nce4 {[%clk 0:01:54]} 22. g4 {[%clk 0:02:01]}  Nxc3 {[%clk 0:01:42]} 23. bxc3 {[%clk 0:02:01]}  Ne4 {[%clk 0:01:40]} 24. Bxd8 {[%clk 0:01:57]}  Qxd8 {[%clk 0:01:40]} 25. c4 {[%clk 0:01:47]}  Rxc4 {[%clk 0:01:25]} 26. Qb2 {[%clk 0:01:46]}  Qf6 {[%clk 0:01:21]} 27. Qxb7 {[%clk 0:01:44]}  Rc2 {[%clk 0:00:58]} 28. Nd4 {[%clk 0:01:32]}  Rcc8 {[%clk 0:00:46]} 29. Nf5 {[%clk 0:01:09]}  Rb8 {[%clk 0:00:41]} 30. Qa7 {[%clk 0:01:06]}  Rb2 {[%clk 0:00:37]} 31. Qxa5 {[%clk 0:01:04]}  Nc3 {[%clk 0:00:20]} 32. Rdf1 {[%clk 0:01:01]}  Ne2+ {[%clk 0:00:18]} 33. Kh1 {[%clk 0:01:01]}  Rc8 {[%clk 0:00:15]} 34. Qxd5 {[%clk 0:00:42]}  Rcc2 {[%clk 0:00:14]} 35. R3f2 {[%clk 0:00:24]}  g6 {[%clk 0:00:11]} 36. Nxh6+ {[%clk 0:00:21]}  Kg7 {[%clk 0:00:12]} 37. g5 {[%clk 0:00:21]}  Qc6 {[%clk 0:00:05]} 38. Qxc6 {[%clk 0:00:16]} 1-0


[Site "https://www.chess.com"]

[Event "Titled Tuesday Blitz April 26 Late 2022"]
[White "Pakleza, Zbigniew"]
[Black "Urbina Perez, Juan Antonio"]
[WhiteFideId "1119290"]
[BlackFideId "2217368"]
[WhiteElo "2467"]
[BlackElo "2192"]
[Result "1/2-1/2"]
[Round "01"]
[TimeControl "180+1"]
[Date "2022.04.26"]
[WhiteClock "0:00:02"]
[BlackClock "0:00:05"]

1. d4 {[%clk 0:03:00]}  d5 {[%clk 0:02:59]} 2. Bf4 {[%clk 0:03:00]}  c6 {[%clk 0:02:58]} 3. e3 {[%clk 0:03:01]}  Qb6 {[%clk 0:02:59]} 4. Qc1 {[%clk 0:03:00]}  Bf5 {[%clk 0:02:59]} 5. c4 {[%clk 0:03:01]}  e6 {[%clk 0:02:57]} 6. Nc3 {[%clk 0:03:01]}  Nf6 {[%clk 0:02:54]} 7. c5 {[%clk 0:02:59]}  Qd8 {[%clk 0:02:52]} 8. h3 {[%clk 0:02:57]}  Be7 {[%clk 0:02:52]} 9. Nf3 {[%clk 0:02:56]}  h6 {[%clk 0:02:52]} 10. Be2 {[%clk 0:02:56]}  O-O {[%clk 0:02:52]} 11. O-O {[%clk 0:02:56]}  Qc8 {[%clk 0:02:51]} 12. b4 {[%clk 0:02:53]}  a6 {[%clk 0:02:49]} 13. a4 {[%clk 0:02:52]}  Bd8 {[%clk 0:02:49]} 14. b5 {[%clk 0:02:48]}  axb5 {[%clk 0:02:49]} 15. axb5 {[%clk 0:02:49]}  Rxa1 {[%clk 0:02:48]} 16. Qxa1 {[%clk 0:02:50]}  Bc7 {[%clk 0:02:48]} 17. Bxc7 {[%clk 0:02:43]}  Qxc7 {[%clk 0:02:49]} 18. Qa7 {[%clk 0:02:41]}  Nbd7 {[%clk 0:02:44]} 19. bxc6 {[%clk 0:02:35]}  Qxc6 {[%clk 0:02:39]} 20. Ra1 {[%clk 0:02:16]}  Ne4 {[%clk 0:02:36]} 21. Bb5 {[%clk 0:02:02]}  Qc8 {[%clk 0:02:28]} 22. Na4 {[%clk 0:01:27]}  Ndf6 {[%clk 0:02:02]} 23. Ne5 {[%clk 0:01:20]}  Nh7 {[%clk 0:01:39]} 24. Nd7 {[%clk 0:00:35]}  Rd8 {[%clk 0:01:35]} 25. Nab6 {[%clk 0:00:33]}  Qc7 {[%clk 0:01:26]} 26. f3 {[%clk 0:00:24]}  Bxh3 {[%clk 0:01:21]} 27. Ne5 {[%clk 0:00:19]}  f6 {[%clk 0:01:16]} 28. Na8 {[%clk 0:00:19]}  Qe7 {[%clk 0:01:08]} 29. Ng6 {[%clk 0:00:16]}  Qf7 {[%clk 0:01:05]} 30. Nf4 {[%clk 0:00:16]}  Bxg2 {[%clk 0:01:02]} 31. Kxg2 {[%clk 0:00:17]}  e5 {[%clk 0:01:01]} 32. Qb6 {[%clk 0:00:11]}  Rf8 {[%clk 0:00:55]} 33. Qe6 {[%clk 0:00:11]}  Nc3 {[%clk 0:00:44]} 34. Qxf7+ {[%clk 0:00:11]}  Rxf7 {[%clk 0:00:42]} 35. Be8 {[%clk 0:00:11]}  Re7 {[%clk 0:00:37]} 36. Ra3 {[%clk 0:00:10]}  exf4 {[%clk 0:00:34]} 37. Rxc3 {[%clk 0:00:04]}  Rxe8 {[%clk 0:00:34]} 38. Nc7 {[%clk 0:00:03]}  Rxe3 {[%clk 0:00:32]} 39. Rxe3 {[%clk 0:00:03]}  fxe3 {[%clk 0:00:33]} 40. Nxd5 {[%clk 0:00:03]}  Kf7 {[%clk 0:00:32]} 41. Nxe3 {[%clk 0:00:04]}  Ng5 {[%clk 0:00:31]} 42. d5 {[%clk 0:00:04]}  Ke7 {[%clk 0:00:31]} 43. Nf5+ {[%clk 0:00:05]}  Kf7 {[%clk 0:00:30]} 44. c6 {[%clk 0:00:05]}  bxc6 {[%clk 0:00:30]} 45. dxc6 {[%clk 0:00:06]}  Ne6 {[%clk 0:00:30]} 46. Nd6+ {[%clk 0:00:06]}  Ke7 {[%clk 0:00:29]} 47. Nf5+ {[%clk 0:00:07]}  Kf7 {[%clk 0:00:29]} 48. Nd6+ {[%clk 0:00:07]}  Ke7 {[%clk 0:00:28]} 49. Nf5+ {[%clk 0:00:07]}  Kd8 {[%clk 0:00:26]} 50. Nd6 {[%clk 0:00:07]}  Kc7 {[%clk 0:00:25]} 51. Nf5 {[%clk 0:00:07]}  Kxc6 {[%clk 0:00:26]} 52. Kg3 {[%clk 0:00:08]}  Kd7 {[%clk 0:00:26]} 53. Ne3 {[%clk 0:00:09]}  Ke7 {[%clk 0:00:26]} 54. Kg4 {[%clk 0:00:10]}  Kf7 {[%clk 0:00:26]} 55. Nf5 {[%clk 0:00:10]}  Nc5 {[%clk 0:00:24]} 56. Nd6+ {[%clk 0:00:10]}  Ke7 {[%clk 0:00:24]} 57. Nf5+ {[%clk 0:00:11]}  Kf7 {[%clk 0:00:24]} 58. Nd6+ {[%clk 0:00:10]}  Kg6 {[%clk 0:00:25]} 59. f4 {[%clk 0:00:10]}  Nd3 {[%clk 0:00:25]} 60. f5+ {[%clk 0:00:10]}  Kh7 {[%clk 0:00:25]} 61. Kh5 {[%clk 0:00:08]}  Ne5 {[%clk 0:00:25]} 62. Ne4 {[%clk 0:00:07]}  Nf3 {[%clk 0:00:24]} 63. Kg4 {[%clk 0:00:07]}  Nd4 {[%clk 0:00:25]} 64. Nd6 {[%clk 0:00:07]}  Kg8 {[%clk 0:00:24]} 65. Kh5 {[%clk 0:00:06]}  Kf8 {[%clk 0:00:23]} 66. Kg6 {[%clk 0:00:07]}  Nf3 {[%clk 0:00:23]} 67. Kh5 {[%clk 0:00:06]}  Ke7 {[%clk 0:00:22]} 68. Nc8+ {[%clk 0:00:06]}  Kf7 {[%clk 0:00:21]} 69. Nd6+ {[%clk 0:00:06]}  Kf8 {[%clk 0:00:19]} 70. Nc8 {[%clk 0:00:06]}  Nd4 {[%clk 0:00:18]} 71. Kg6 {[%clk 0:00:05]}  Ne2 {[%clk 0:00:17]} 72. Nd6 {[%clk 0:00:03]}  Ng3 {[%clk 0:00:17]} 73. Nb5 {[%clk 0:00:01]}  h5 {[%clk 0:00:17]} 74. Nd4 {[%clk 0:00:02]}  h4 {[%clk 0:00:17]} 75. Nf3 {[%clk 0:00:03]}  h3 {[%clk 0:00:18]} 76. Kh7 {[%clk 0:00:03]}  Nxf5 {[%clk 0:00:17]} 77. Kg6 {[%clk 0:00:03]}  Ng3 {[%clk 0:00:14]} 78. Nh2 {[%clk 0:00:03]}  Ke7 {[%clk 0:00:13]} 79. Kxg7 {[%clk 0:00:03]}  Ke6 {[%clk 0:00:13]} 80. Kg6 {[%clk 0:00:04]}  Ke5 {[%clk 0:00:14]} 81. Kh6 {[%clk 0:00:04]}  Kf4 {[%clk 0:00:14]} 82. Kg6 {[%clk 0:00:04]}  f5 {[%clk 0:00:14]} 83. Kh6 {[%clk 0:00:03]}  Ke4 {[%clk 0:00:14]} 84. Kg5 {[%clk 0:00:04]}  f4 {[%clk 0:00:12]} 85. Kg4 {[%clk 0:00:05]}  Ne2 {[%clk 0:00:10]} 86. Kxh3 {[%clk 0:00:05]}  Ke3 {[%clk 0:00:10]} 87. Kg4 {[%clk 0:00:04]}  Nd4 {[%clk 0:00:10]} 88. Kh3 {[%clk 0:00:04]}  Nf3 {[%clk 0:00:10]} 89. Ng4+ {[%clk 0:00:04]}  Ke2 {[%clk 0:00:09]} 90. Nf6 {[%clk 0:00:05]}  Ne5 {[%clk 0:00:08]} 91. Nh5 {[%clk 0:00:04]}  f3 {[%clk 0:00:09]} 92. Ng3+ {[%clk 0:00:04]}  Ke3 {[%clk 0:00:09]} 93. Kh2 {[%clk 0:00:04]}  Ng4+ {[%clk 0:00:08]} 94. Kg1 {[%clk 0:00:05]}  f2+ {[%clk 0:00:08]} 95. Kg2 {[%clk 0:00:03]}  Ne5 {[%clk 0:00:06]} 96. Nh1 {[%clk 0:00:01]}  Nf3 {[%clk 0:00:05]} 97. Nxf2 {[%clk 0:00:02]} 1/2-1/2


[Site "https://www.chess.com"]

[Event "Titled Tuesday Blitz April 26 Late 2022"]
[White "Paravyan, David"]
[Black "Mortazavi, Ali"]
[WhiteFideId "4194985"]
[BlackFideId "401323"]
[WhiteElo "2569"]
[BlackElo "2339"]
[Result "1/2-1/2"]
[Round "01"]
[TimeControl "180+1"]
[Date "2022.04.26"]
[WhiteClock "0:00:04"]
[BlackClock "0:00:20"]

1. e4 {[%clk 0:02:58]}  c6 {[%clk 0:02:59]} 2. d4 {[%clk 0:02:58]}  d5 {[%clk 0:03:00]} 3. e5 {[%clk 0:02:58]}  Bf5 {[%clk 0:03:00]} 4. Nf3 {[%clk 0:02:58]}  e6 {[%clk 0:03:00]} 5. Be2 {[%clk 0:02:59]}  Ne7 {[%clk 0:03:01]} 6. O-O {[%clk 0:02:56]}  Ng6 {[%clk 0:03:01]} 7. c4 {[%clk 0:02:52]}  dxc4 {[%clk 0:02:59]} 8. Bxc4 {[%clk 0:02:52]}  Nd7 {[%clk 0:03:00]} 9. Nc3 {[%clk 0:02:53]}  Nb6 {[%clk 0:03:00]} 10. Bb3 {[%clk 0:02:51]}  Nh4 {[%clk 0:02:54]} 11. Nxh4 {[%clk 0:02:33]}  Qxh4 {[%clk 0:02:54]} 12. Be3 {[%clk 0:02:34]}  Be7 {[%clk 0:02:40]} 13. Qf3 {[%clk 0:02:19]}  h5 {[%clk 0:02:27]} 14. Rfe1 {[%clk 0:02:07]}  g5 {[%clk 0:02:20]} 15. a4 {[%clk 0:01:55]}  a5 {[%clk 0:02:13]} 16. Rac1 {[%clk 0:01:27]}  Qg4 {[%clk 0:01:52]} 17. Qxg4 {[%clk 0:01:05]}  hxg4 {[%clk 0:01:52]} 18. Ne2 {[%clk 0:01:02]}  Rd8 {[%clk 0:01:40]} 19. Ng3 {[%clk 0:01:00]}  Bg6 {[%clk 0:01:41]} 20. Bd2 {[%clk 0:00:46]}  Rxd4 {[%clk 0:01:26]} 21. Bxa5 {[%clk 0:00:45]}  Nxa4 {[%clk 0:01:18]} 22. Ne2 {[%clk 0:00:34]}  Re4 {[%clk 0:01:09]} 23. Bc2 {[%clk 0:00:33]}  Nxb2 {[%clk 0:00:59]} 24. Bxe4 {[%clk 0:00:28]}  Bxe4 {[%clk 0:01:00]} 25. Nc3 {[%clk 0:00:15]}  Bf5 {[%clk 0:00:55]} 26. Ra1 {[%clk 0:00:14]}  Nd3 {[%clk 0:00:46]} 27. Re2 {[%clk 0:00:14]}  Bc5 {[%clk 0:00:45]} 28. Na4 {[%clk 0:00:15]}  Bd4 {[%clk 0:00:41]} 29. Bc3 {[%clk 0:00:15]}  Bxc3 {[%clk 0:00:31]} 30. Nxc3 {[%clk 0:00:16]}  O-O {[%clk 0:00:32]} 31. Ne4 {[%clk 0:00:11]}  Nf4 {[%clk 0:00:30]} 32. Ree1 {[%clk 0:00:10]}  Bxe4 {[%clk 0:00:28]} 33. Rxe4 {[%clk 0:00:10]}  b5 {[%clk 0:00:28]} 34. g3 {[%clk 0:00:10]}  Nd5 {[%clk 0:00:19]} 35. Rxg4 {[%clk 0:00:09]}  Rb8 {[%clk 0:00:20]} 36. Rxg5+ {[%clk 0:00:09]}  Kf8 {[%clk 0:00:20]} 37. Rh5 {[%clk 0:00:08]}  Kg7 {[%clk 0:00:21]} 38. Rg5+ {[%clk 0:00:08]}  Kf8 {[%clk 0:00:21]} 39. Rh5 {[%clk 0:00:05]}  Kg7 {[%clk 0:00:21]} 40. Rg5+ {[%clk 0:00:04]}  Kf8 {[%clk 0:00:20]} 1/2-1/2


[Site "https://www.chess.com"]

[Event "Titled Tuesday Blitz April 26 Late 2022"]
[White "Pasti, Aron"]
[Black "Tatarinov, Dmitry"]
[WhiteFideId "785857"]
[BlackFideId "24160067"]
[WhiteElo "2133"]
[BlackElo "2302"]
[Result "0-1"]
[Round "01"]
[TimeControl "180+1"]
[Date "2022.04.26"]
[WhiteClock "0:00:11"]
[BlackClock "0:01:26"]

1. e4 {[%clk 0:02:46]}  c5 {[%clk 0:02:50]} 2. Nf3 {[%clk 0:02:42]}  d6 {[%clk 0:02:50]} 3. d4 {[%clk 0:02:26]}  cxd4 {[%clk 0:02:51]} 4. Nxd4 {[%clk 0:02:25]}  Nf6 {[%clk 0:02:52]} 5. Nc3 {[%clk 0:02:25]}  a6 {[%clk 0:02:52]} 6. Bg5 {[%clk 0:02:14]}  e6 {[%clk 0:02:45]} 7. f4 {[%clk 0:02:04]}  Qb6 {[%clk 0:02:43]} 8. Qd2 {[%clk 0:02:00]}  Qxb2 {[%clk 0:02:42]} 9. Rb1 {[%clk 0:01:57]}  Qa3 {[%clk 0:02:42]} 10. e5 {[%clk 0:01:56]}  h6 {[%clk 0:02:33]} 11. Bh4 {[%clk 0:01:55]}  dxe5 {[%clk 0:02:16]} 12. fxe5 {[%clk 0:01:56]}  Nfd7 {[%clk 0:02:16]} 13. Rb3 {[%clk 0:01:36]}  Qa5 {[%clk 0:02:13]} 14. Be2 {[%clk 0:01:24]}  Bc5 {[%clk 0:02:06]} 15. O-O {[%clk 0:00:58]}  Nc6 {[%clk 0:02:05]} 16. Bf2 {[%clk 0:00:58]}  Nxd4 {[%clk 0:02:04]} 17. Bxd4 {[%clk 0:00:58]}  Bxd4+ {[%clk 0:02:05]} 18. Qxd4 {[%clk 0:00:58]}  Qxe5 {[%clk 0:02:05]} 19. Qd3 {[%clk 0:00:50]}  Nc5 {[%clk 0:02:03]} 20. Qf3 {[%clk 0:00:47]}  O-O {[%clk 0:02:03]} 21. Rb4 {[%clk 0:00:44]}  Bd7 {[%clk 0:02:02]} 22. Rf4 {[%clk 0:00:41]}  Bc6 {[%clk 0:02:02]} 23. Qg3 {[%clk 0:00:40]}  Rad8 {[%clk 0:01:54]} 24. Bh5 {[%clk 0:00:40]}  f5 {[%clk 0:01:49]} 25. Bg6 {[%clk 0:00:29]}  Rd2 {[%clk 0:01:32]} 26. Re1 {[%clk 0:00:12]}  Rxg2+ {[%clk 0:01:25]} 27. Qxg2 {[%clk 0:00:11]}  Qxe1+ {[%clk 0:01:25]} 28. Rf1 {[%clk 0:00:11]}  Qxc3 {[%clk 0:01:26]} 0-1


[Site "https://www.chess.com"]

[Event "Titled Tuesday Blitz April 26 Late 2022"]
[White "Peatman, Carter"]
[Black "Kozak, Adam"]
[WhiteFideId "2096480"]
[BlackFideId "753246"]
[WhiteElo "2471"]
[BlackElo "2459"]
[Result "1-0"]
[Round "01"]
[TimeControl "180+1"]
[Date "2022.04.26"]
[WhiteClock "0:00:29"]
[BlackClock "0:00:01"]

1. d4 {[%clk 0:02:59]}  Nf6 {[%clk 0:01:14]} 2. Bf4 {[%clk 0:02:57]}  d5 {[%clk 0:01:13]} 3. e3 {[%clk 0:02:58]}  e6 {[%clk 0:01:14]} 4. c3 {[%clk 0:02:56]}  Bd6 {[%clk 0:01:14]} 5. Bg3 {[%clk 0:02:57]}  O-O {[%clk 0:01:14]} 6. Nf3 {[%clk 0:02:56]}  Nbd7 {[%clk 0:01:12]} 7. c4 {[%clk 0:02:53]}  Bb4+ {[%clk 0:01:09]} 8. Nc3 {[%clk 0:02:53]}  Ne4 {[%clk 0:01:09]} 9. Rc1 {[%clk 0:02:52]}  c6 {[%clk 0:01:06]} 10. Qb3 {[%clk 0:02:45]}  Ba5 {[%clk 0:01:01]} 11. Bd3 {[%clk 0:02:39]}  f5 {[%clk 0:00:59]} 12. Ne5 {[%clk 0:02:12]}  Nxg3 {[%clk 0:00:55]} 13. hxg3 {[%clk 0:02:13]}  Nxe5 {[%clk 0:00:55]} 14. dxe5 {[%clk 0:02:13]}  Bc7 {[%clk 0:00:56]} 15. f4 {[%clk 0:02:11]}  Bb6 {[%clk 0:00:55]} 16. Ke2 {[%clk 0:02:05]}  d4 {[%clk 0:00:53]} 17. Na4 {[%clk 0:01:58]}  dxe3 {[%clk 0:00:51]} 18. Nxb6 {[%clk 0:01:47]}  axb6 {[%clk 0:00:44]} 19. Kxe3 {[%clk 0:01:47]}  h6 {[%clk 0:00:42]} 20. Be2 {[%clk 0:01:44]}  Qc7 {[%clk 0:00:41]} 21. Rhd1 {[%clk 0:01:41]}  Ra5 {[%clk 0:00:28]} 22. Rd6 {[%clk 0:01:39]}  g5 {[%clk 0:00:24]} 23. Rcd1 {[%clk 0:01:38]}  Qg7 {[%clk 0:00:24]} 24. Qxb6 {[%clk 0:01:23]}  Ra6 {[%clk 0:00:21]} 25. Qc5 {[%clk 0:00:57]}  Rxa2 {[%clk 0:00:13]} 26. R1d2 {[%clk 0:00:45]}  Qc7 {[%clk 0:00:06]} 27. Bh5 {[%clk 0:00:34]}  Ra5 {[%clk 0:00:06]} 28. Qd4 {[%clk 0:00:34]}  Qe7 {[%clk 0:00:03]} 29. Rd8 {[%clk 0:00:31]}  Ra8 {[%clk 0:00:03]} 30. Rxf8+ {[%clk 0:00:31]}  Kxf8 {[%clk 0:00:03]} 31. Qd8+ {[%clk 0:00:30]}  Qxd8 {[%clk 0:00:03]} 32. Rxd8+ {[%clk 0:00:31]}  Kg7 {[%clk 0:00:02]} 33. Be8 {[%clk 0:00:29]}  b6 {[%clk 0:00:02]} 34. Bxc6 {[%clk 0:00:29]}  Rb8 {[%clk 0:00:01]} 35. Bd7 {[%clk 0:00:28]}  Rb7 {[%clk 0:00:01]} 36. Bxc8 {[%clk 0:00:28]}  Rb8 {[%clk 0:00:02]} 37. Rd7+ {[%clk 0:00:27]}  Kf8 {[%clk 0:00:02]} 38. Rc7 {[%clk 0:00:27]}  Rxc8 {[%clk 0:00:01]} 39. Rxc8+ {[%clk 0:00:27]}  Ke7 {[%clk 0:00:02]} 40. Rc7+ {[%clk 0:00:28]}  Kd8 {[%clk 0:00:01]} 41. Rh7 {[%clk 0:00:28]}  Ke8 {[%clk 0:00:02]} 42. Rxh6 {[%clk 0:00:28]}  Kd7 {[%clk 0:00:02]} 43. fxg5 {[%clk 0:00:28]}  Kc6 {[%clk 0:00:03]} 44. Kd4 {[%clk 0:00:28]}  Kd7 {[%clk 0:00:03]} 45. Rh7+ {[%clk 0:00:28]}  Kc6 {[%clk 0:00:02]} 46. g6 {[%clk 0:00:28]}  b5 {[%clk 0:00:03]} 47. g7 {[%clk 0:00:28]}  b4 {[%clk 0:00:03]} 48. g8=Q {[%clk 0:00:29]}  b3 {[%clk 0:00:02]} 49. Qc8+ {[%clk 0:00:28]}  Kb6 {[%clk 0:00:02]} 50. Rb7+ {[%clk 0:00:28]}  Ka5 {[%clk 0:00:01]} 51. Qa8# {[%clk 0:00:29]} 1-0


[Site "https://www.chess.com"]

[Event "Titled Tuesday Blitz April 26 Late 2022"]
[White "Petrova, Irina"]
[Black "Tregubov, Pavel V."]
[WhiteFideId "14124122"]
[BlackFideId "4115341"]
[WhiteElo "1993"]
[BlackElo "2341"]
[Result "0-1"]
[Round "01"]
[TimeControl "180+1"]
[Date "2022.04.26"]
[WhiteClock "0:00:07"]
[BlackClock "0:00:16"]

1. e4 {[%clk 0:03:00]}  c5 {[%clk 0:02:54]} 2. Nf3 {[%clk 0:03:01]}  e6 {[%clk 0:02:53]} 3. b3 {[%clk 0:03:00]}  Nc6 {[%clk 0:02:51]} 4. Bb2 {[%clk 0:02:57]}  a6 {[%clk 0:02:51]} 5. g3 {[%clk 0:02:53]}  d5 {[%clk 0:02:50]} 6. e5 {[%clk 0:02:50]}  Nge7 {[%clk 0:02:44]} 7. Bg2 {[%clk 0:02:49]}  Nf5 {[%clk 0:02:44]} 8. O-O {[%clk 0:02:47]}  Be7 {[%clk 0:02:44]} 9. d3 {[%clk 0:02:35]}  O-O {[%clk 0:02:41]} 10. c3 {[%clk 0:02:24]}  b5 {[%clk 0:02:39]} 11. Re1 {[%clk 0:02:19]}  a5 {[%clk 0:02:31]} 12. Nbd2 {[%clk 0:02:18]}  a4 {[%clk 0:02:29]} 13. Nf1 {[%clk 0:02:18]}  Bb7 {[%clk 0:02:16]} 14. h4 {[%clk 0:02:01]}  d4 {[%clk 0:02:12]} 15. c4 {[%clk 0:01:55]}  bxc4 {[%clk 0:02:06]} 16. bxc4 {[%clk 0:01:56]}  a3 {[%clk 0:01:48]} 17. Bc1 {[%clk 0:01:55]}  Nb4 {[%clk 0:01:46]} 18. Bf4 {[%clk 0:01:49]}  Bc6 {[%clk 0:01:40]} 19. Qe2 {[%clk 0:01:37]}  Rb8 {[%clk 0:01:29]} 20. Ng5 {[%clk 0:01:14]}  Bxg2 {[%clk 0:01:27]} 21. Kxg2 {[%clk 0:01:15]}  Qd7 {[%clk 0:01:18]} 22. Ne4 {[%clk 0:01:08]}  Nc6 {[%clk 0:01:15]} 23. h5 {[%clk 0:01:05]}  h6 {[%clk 0:01:12]} 24. Nh2 {[%clk 0:00:58]}  Rb2 {[%clk 0:01:12]} 25. Qg4 {[%clk 0:00:58]}  Nb4 {[%clk 0:01:05]} 26. Red1 {[%clk 0:00:46]}  Kh8 {[%clk 0:01:05]} 27. Nf3 {[%clk 0:00:44]}  Ne3+ {[%clk 0:00:51]} 28. Bxe3 {[%clk 0:00:42]}  dxe3 {[%clk 0:00:52]} 29. d4 {[%clk 0:00:27]}  exf2 {[%clk 0:00:32]} 30. dxc5 {[%clk 0:00:24]}  Qc6 {[%clk 0:00:22]} 31. Nxf2 {[%clk 0:00:16]}  Nc2 {[%clk 0:00:20]} 32. Kg1 {[%clk 0:00:09]}  Nxa1 {[%clk 0:00:19]} 33. Rxa1 {[%clk 0:00:09]}  Bxc5 {[%clk 0:00:18]} 34. Nd4 {[%clk 0:00:08]}  Qb6 {[%clk 0:00:17]} 35. Rd1 {[%clk 0:00:07]}  Rd8 {[%clk 0:00:16]} 0-1


[Site "https://www.chess.com"]

[Event "Titled Tuesday Blitz April 26 Late 2022"]
[White "Proudian, Armen"]
[Black "Winkels, Marcel"]
[WhiteFideId "2130734"]
[BlackFideId "1003887"]
[WhiteElo "2380"]
[BlackElo "1900"]
[Result "1-0"]
[Round "01"]
[TimeControl "180+1"]
[Date "2022.04.26"]
[WhiteClock "0:01:10"]
[BlackClock "0:00:12"]

1. e4 {[%clk 0:02:59]}  c5 {[%clk 0:02:58]} 2. Nf3 {[%clk 0:03:00]}  e6 {[%clk 0:02:57]} 3. d4 {[%clk 0:03:00]}  cxd4 {[%clk 0:02:56]} 4. Nxd4 {[%clk 0:03:01]}  a6 {[%clk 0:02:56]} 5. Bd3 {[%clk 0:03:00]}  Nf6 {[%clk 0:02:55]} 6. O-O {[%clk 0:03:00]}  d6 {[%clk 0:02:54]} 7. f4 {[%clk 0:03:00]}  Nbd7 {[%clk 0:02:52]} 8. Kh1 {[%clk 0:02:57]}  Be7 {[%clk 0:02:52]} 9. Nc3 {[%clk 0:02:51]}  O-O {[%clk 0:02:48]} 10. Qf3 {[%clk 0:02:51]}  Rb8 {[%clk 0:02:29]} 11. a4 {[%clk 0:02:44]}  Qc7 {[%clk 0:02:28]} 12. Be3 {[%clk 0:02:41]}  b6 {[%clk 0:02:27]} 13. Qh3 {[%clk 0:02:38]}  e5 {[%clk 0:02:22]} 14. Nf5 {[%clk 0:02:36]}  Nc5 {[%clk 0:02:20]} 15. fxe5 {[%clk 0:02:27]}  dxe5 {[%clk 0:02:10]} 16. Qg3 {[%clk 0:02:05]}  Bxf5 {[%clk 0:02:03]} 17. Rxf5 {[%clk 0:02:05]}  Nxd3 {[%clk 0:01:56]} 18. cxd3 {[%clk 0:02:06]}  Kh8 {[%clk 0:01:44]} 19. Raf1 {[%clk 0:02:01]}  Rbd8 {[%clk 0:01:23]} 20. Bg5 {[%clk 0:01:33]}  b5 {[%clk 0:00:36]} 21. axb5 {[%clk 0:01:30]}  axb5 {[%clk 0:00:34]} 22. Bxf6 {[%clk 0:01:29]}  Bxf6 {[%clk 0:00:32]} 23. Nd5 {[%clk 0:01:29]}  Qc2 {[%clk 0:00:23]} 24. b4 {[%clk 0:01:20]}  Rg8 {[%clk 0:00:20]} 25. h3 {[%clk 0:01:18]}  Rde8 {[%clk 0:00:17]} 26. Qf3 {[%clk 0:01:16]}  Rc8 {[%clk 0:00:16]} 27. Rh5 {[%clk 0:01:09]}  Ra8 {[%clk 0:00:12]} 28. Rxh7+ {[%clk 0:01:09]}  Kxh7 {[%clk 0:00:12]} 29. Qh5# {[%clk 0:01:10]} 1-0


[Site "https://www.chess.com"]